bitfinex-derivatives/quotes_BTCF0:USTF0_20260131
["timestamp","ask_amount","ask_price","bid_price","bid_amount"]
[1769881882926,0.29121544,78990.0,78941.0,0.29063245]
[1769881883128,0.29121544,78990.0,78917.0,0.063455]
[1769881883129,0.29121544,78986.0,78942.0,0.42584]
[1769881883332,0.29121544,78986.0,78944.0,0.29063245]
[1769881884141,0.29121544,78986.0,78943.0,0.0914]
[1769881884142,0.29121544,78997.0,78961.0,0.29063245]
[1769881884331,0.29116544,78997.0,78961.0,0.29063245]
[1769881884632,0.0914,79005.0,78961.0,0.29063245]
[1769881884828,0.0914,79005.0,78963.0,0.29063245]
[1769881885227,0.0914,79005.0,78980.0,0.20932958]
[1769881885828,0.0914,79005.0,78960.0,0.20932958]
[1769881886027,0.12661593,79004.0,78961.0,0.29063245]
[1769881886226,0.0914,79005.0,78963.0,0.29063245]
[1769881886532,0.29121544,79004.0,78963.0,0.29063245]
[1769881886729,0.29121544,79003.0,78962.0,0.42576]
[1769881886934,0.29121544,79003.0,78962.0,0.0914]
[1769881887227,0.29121544,79003.0,78930.0,0.20932958]
[1769881887432,0.29121544,78999.0,78922.0,0.09136]
[1769881887632,0.45467054,78998.0,78922.0,0.09136]
[1769881887828,0.12043054,78997.0,78922.0,0.09136]
[1769881888024,0.48595054,78996.0,78928.0,0.29063245]
[1769881888230,0.48595054,78996.0,78934.0,0.12663678]
[1769881888231,0.36552,78996.0,78934.0,0.12663678]
[1769881888526,0.36552,78996.0,78928.0,0.29063245]
[1769881888527,0.36552,78996.0,78925.0,0.29063245]
[1769881888727,0.12663678,78995.0,78925.0,0.30332145]
[1769881889028,0.12663678,78995.0,78925.0,0.29063245]
[1769881889233,0.12663678,78995.0,78922.0,0.09136]
[1769881889534,0.29121544,78994.0,78925.0,0.29063245]
[1769881889835,0.29121544,78994.0,78934.0,0.29063245]
[1769881890028,0.29121544,78994.0,78922.0,0.09136]
[1769881890228,0.29121544,78992.0,78922.0,0.09136]
[1769881890534,0.29121544,78990.0,78922.0,0.09136]
[1769881890831,0.29121544,78988.0,78922.0,0.09136]
[1769881891026,0.29121544,78986.0,78922.0,0.09136]
[1769881891228,0.29121544,78984.0,78922.0,0.09136]
[1769881891431,0.29121544,78982.0,78922.0,0.09136]
[1769881891630,0.29121544,78980.0,78922.0,0.09136]
[1769881891828,0.29121544,78978.0,78922.0,0.09136]
[1769881892029,0.29121544,78976.0,78922.0,0.09136]
[1769881892231,0.29121544,78974.0,78922.0,0.09136]
[1769881892440,0.09136,78975.0,78922.0,0.09136]
[1769881892441,0.29121544,78972.0,78923.0,0.29063245]
[1769881892629,0.29121544,78970.0,78923.0,0.29063245]
[1769881892934,0.29121544,78970.0,78925.0,0.29063245]
[1769881893130,0.29121544,78970.0,78930.0,0.29063245]
[1769881893631,0.12666645,78969.0,78932.0,0.29063245]
[1769881893825,0.00011222,78971.0,78940.0,0.20932958]
[1769881894024,0.00011222,78971.0,78941.0,0.29063245]
[1769881894234,0.00011222,78971.0,78951.0,0.29063245]
[1769881894432,0.00011222,78971.0,78954.0,0.29063245]
[1769881894628,0.00011222,78971.0,78952.0,0.09136]
[1769881895036,0.29121544,78969.0,78922.0,0.30332245]
[1769881895340,0.29121544,78969.0,78924.0,0.30332245]
[1769881895541,0.29121544,78969.0,78922.0,0.46080239]
[1769881895833,0.29121544,78967.0,78921.0,0.09136]
[1769881896136,0.29121544,78965.0,78921.0,0.09136]
[1769881896340,0.29121544,78963.0,78921.0,0.09136]
[1769881896634,0.29121544,78963.0,78906.0,0.09132]
[1769881896929,0.29121544,78961.0,78906.0,0.09132]
[1769881897131,0.29478115,78959.0,78906.0,0.09132]
[1769881897329,0.29478115,78957.0,78906.0,0.09132]
[1769881897528,0.29478115,78955.0,78906.0,0.09132]
[1769881897925,0.29478115,78929.0,78890.0,0.00014759]
[1769881898130,0.29478115,78927.0,78890.0,0.00014759]
[1769881898332,0.29478115,78927.0,78890.0,0.27103842]
[1769881898636,0.42147488,78926.0,78890.0,0.27103842]
[1769881898936,0.4255592,78928.0,78890.0,0.00014759]
[1769881898937,0.29478115,78925.0,78890.0,0.00014759]
[1769881899433,0.4255592,78928.0,78890.0,0.00014759]
[1769881899434,0.29478115,78909.0,78890.0,0.00014759]
[1769881899734,0.29478115,78909.0,78862.0,0.09132]
[1769881899735,0.29478115,78907.0,78862.0,0.09132]
[1769881900137,0.29478115,78907.0,78862.0,0.36221083]
[1769881900336,0.29478115,78905.0,78862.0,0.36221083]
[1769881900542,0.29478115,78903.0,78862.0,0.36221083]
[1769881901037,0.20932958,78890.0,78863.0,0.012699]
[1769881901431,0.20932958,78910.0,78871.0,0.27089083]
[1769881901632,0.28248704,78909.0,78871.0,0.27089083]
[1769881901835,0.20932958,78890.0,78862.0,0.09132]
[1769881902238,0.20932958,78910.0,78872.0,0.29644254]
[1769881902439,0.00010445,78909.0,78887.0,0.29644254]
[1769881903035,0.00010445,78909.0,78882.0,0.09136]
[1769881903235,0.00010445,78909.0,78884.0,0.012696]
[1769881903539,0.00010445,78909.0,78882.0,0.09136]
[1769881904234,0.00010445,78909.0,78884.0,0.012696]
[1769881904438,0.09136,78923.0,78895.0,0.30913654]
[1769881905436,0.09136,78923.0,78901.0,0.012693]
[1769881905634,0.09136,78923.0,78895.0,0.012694]
[1769881906035,0.09136,78923.0,78883.0,0.29644254]
[1769881906036,0.09136,78923.0,78898.0,0.30913654]
[1769881906842,0.06936,78923.0,78897.0,0.09136]
[1769881907030,0.06936,78923.0,78898.0,0.012694]
[1769881907232,0.06936,78923.0,78905.0,0.012693]
[1769881907641,0.54352958,78930.0,78905.0,0.012693]
[1769881907642,0.20932958,78930.0,78910.0,0.012692]
[1769881907841,0.09136,78934.0,78915.0,0.012691]
[1769881908041,0.09136,78934.0,78915.0,0.30913354]
[1769881908241,0.42556,78943.0,78919.0,0.01269]
[1769881908442,0.09136,78943.0,78914.0,0.29644254]
[1769881908638,0.09136,78943.0,78915.0,0.012691]
[1769881908947,0.09136,78943.0,78918.0,0.29644254]
[1769881909544,0.09136,78943.0,78925.0,0.012689]
[1769881910538,0.09136,78943.0,78918.0,0.29744254]
[1769881910539,0.09136,78959.0,78929.0,0.29644254]
[1769881910740,0.09136,78959.0,78918.0,0.001]
[1769881910741,0.28248704,78959.0,78930.0,0.09136]
[1769881911242,0.09136,78968.0,78925.0,0.012689]
[1769881911243,0.20932958,78940.0,78925.0,0.001]
[1769881911842,0.20932958,78940.0,78916.0,0.09136]
[1769881912549,0.09136,78944.0,78916.0,0.104051]
[1769881912735,0.09136,78944.0,78917.0,0.29644254]
[1769881912941,0.49181662,78960.0,78925.0,0.012689]
[1769881913145,0.28248704,78959.0,78925.0,0.012689]
[1769881913343,0.28248704,78953.0,78924.0,0.01269]
[1769881913938,0.20932958,78960.0,78929.0,0.012689]
[1769881914152,0.42556,78965.0,78931.0,0.29644254]
[1769881914346,0.09136,78965.0,78944.0,0.012686]
[1769881914849,0.33416,78974.0,78950.0,0.012685]
[1769881915442,0.09136,78976.0,78947.0,0.09136]
[1769881915645,0.28248704,78986.0,78948.0,0.29644254]
[1769881915852,0.28248704,78984.0,78951.0,0.12665522]
[1769881916051,0.28248704,78978.0,78948.0,0.33416]
[1769881916348,0.28248704,78978.0,78948.0,0.012686]
[1769881916546,0.09132,78977.0,78948.0,0.012686]
[1769881916744,0.28248704,78976.0,78948.0,0.012686]
[1769881917145,0.20932958,78970.0,78926.0,0.09132]
[1769881917342,0.28248704,78968.0,78932.0,0.012688]
[1769881917544,0.28248704,78968.0,78926.0,0.104009]
[1769881917747,0.28248704,78966.0,78913.0,0.29644254]
[1769881917953,0.28248704,78964.0,78924.0,0.01269]
[1769881918154,0.28248704,78962.0,78928.0,0.012689]
[1769881918557,0.09132,78963.0,78933.0,0.012688]
[1769881918752,0.26048704,78962.0,78933.0,0.012688]
[1769881919056,0.23930469,78986.0,78927.0,0.09132]
[1769881919057,0.09132,78979.0,78942.0,0.012687]
[1769881919254,0.09132,78979.0,78938.0,0.29644254]
[1769881919255,0.09132,78979.0,78950.0,0.012685]
[1769881919658,0.09132,78979.0,78943.0,0.09132]
[1769881919659,0.09132,78979.0,78945.0,0.012686]
[1769881919852,0.09132,78979.0,78943.0,0.09132]
[1769881919853,0.09132,78979.0,78946.0,0.012686]
[1769881920057,0.09132,78979.0,78943.0,0.09132]
[1769881920058,0.09132,78979.0,78951.0,0.012685]
[1769881920262,0.12664319,78978.0,78927.0,0.29644254]
[1769881920558,0.12664319,78978.0,78922.0,0.09132]
[1769881920559,0.012681,78976.0,78931.0,0.012688]
[1769881920763,0.28248704,78974.0,78927.0,0.29644254]
[1769881921062,0.28248704,78972.0,78938.0,0.012687]
[1769881921452,0.28248704,78972.0,78927.0,0.29644254]
[1769881921656,0.09132,78979.0,78952.0,0.012685]
[1769881922257,0.28248704,78978.0,78947.0,0.012686]
[1769881922655,0.12663758,78977.0,78941.0,0.09132]
[1769881922862,0.28248704,78976.0,78941.0,0.09132]
[1769881923166,0.28248704,78974.0,78941.0,0.09132]
[1769881924056,0.28248704,78972.0,78942.0,0.012687]
[1769881924461,0.09132,78979.0,78951.0,0.012685]
[1769881924759,0.001,78974.0,78951.0,0.012685]
[1769881925061,0.001,78974.0,78941.0,0.09132]
[1769881925062,0.28248704,78973.0,78941.0,0.09132]
[1769881925255,0.28248704,78973.0,78926.0,0.012689]
[1769881925459,0.28248704,78959.0,78925.0,0.09132]
[1769881925769,0.28248704,78939.0,78905.0,0.09132]
[1769881925962,0.28248704,78935.0,78905.0,0.09132]
[1769881926165,0.4254,78938.0,78893.0,9.493e-05]
[1769881926166,0.28248704,78932.0,78893.0,9.493e-05]
[1769881926461,0.28248704,78928.0,78893.0,9.493e-05]
[1769881926654,0.11961634,78931.0,78893.0,9.493e-05]
[1769881926655,0.28248704,78922.0,78893.0,9.493e-05]
[1769881926855,0.28248704,78919.0,78893.0,9.493e-05]
[1769881927167,0.27217636,78915.0,78870.0,0.09132]
[1769881927362,0.012692,78911.0,78870.0,0.09132]
[1769881927559,0.27217636,78909.0,78870.0,0.09132]
[1769881927762,0.27217636,78913.0,78871.0,0.2901255]
[1769881928057,0.39906124,78912.0,78871.0,0.2901255]
[1769881928262,0.39906124,78912.0,78876.0,0.012697]
[1769881928459,0.39906124,78912.0,78871.0,0.2774275]
[1769881928460,0.27230166,78912.0,78871.0,0.2774275]
[1769881928657,0.27217636,78910.0,78871.0,0.2774275]
[1769881928861,0.27217636,78910.0,78864.0,0.012699]
[1769881929059,0.27217636,78909.0,78864.0,0.012699]
[1769881929257,0.27217636,78908.0,78864.0,0.012699]
[1769881929457,0.12675797,78909.0,78864.0,0.012699]
[1769881929458,0.27217636,78906.0,78864.0,0.012699]
[1769881929760,0.09132,78907.0,78877.0,0.2774275]
[1769881929962,0.0001253,78912.0,78888.0,0.2901225]
[1769881930174,0.0001253,78912.0,78877.0,0.09132]
[1769881930366,0.0001253,78912.0,78878.0,0.2774275]
[1769881930667,0.0001253,78912.0,78884.0,0.012696]
[1769881930874,0.0001253,78912.0,78878.0,0.41689131]
[1769881931170,0.0001253,78912.0,78878.0,0.2901245]
[1769881931469,0.27230166,78912.0,78872.0,0.012698]
[1769881931765,0.0001253,78912.0,78880.0,0.012697]
[1769881931969,0.0001253,78912.0,78890.0,0.20932958]
[1769881932169,0.0001253,78912.0,78891.0,0.012695]
[1769881932563,0.0001253,78912.0,78896.0,0.012694]
[1769881932766,0.09132,78924.0,78900.0,0.48675708]
[1769881932965,0.27217636,78945.0,78903.0,0.2774275]
[1769881933165,0.09136,78939.0,78913.0,0.012691]
[1769881933467,0.09136,78939.0,78907.0,0.012692]
[1769881935961,0.01312331,78952.0,78920.0,0.20932958]
[1769881936169,0.01312331,78952.0,78920.0,0.48675708]
[1769881936473,0.12670577,78955.0,78933.0,0.2774275]
[1769881936766,0.09136,78966.0,78940.0,0.20932958]
[1769881936974,0.09136,78981.0,78945.0,0.2774275]
[1769881937365,0.27217636,78980.0,78946.0,0.012686]
[1769881937870,0.12667207,78979.0,78946.0,0.012686]
[1769881938063,0.12667207,78979.0,78934.0,0.2774275]
[1769881938064,0.27217636,78978.0,78940.0,0.012687]
[1769881938261,0.28485736,78978.0,78934.0,0.2774275]
[1769881938463,0.27217636,78978.0,78940.0,0.012687]
[1769881938667,0.12664159,78977.0,78946.0,0.012686]
[1769881939270,0.27217636,78978.0,78946.0,0.012686]
[1769881942176,0.27217636,78978.0,78934.0,0.09136]
[1769881942177,0.09136,78981.0,78951.0,0.012685]
[1769881942367,0.27217636,79000.0,78959.0,0.2774275]
[1769881942571,0.09132,78995.0,78964.0,0.012683]
[1769881942772,0.09132,78995.0,78964.0,0.104003]
[1769881943178,0.27217636,79012.0,78967.0,0.2774275]
[1769881943468,0.12661513,79010.0,78971.0,0.2774275]
[1769881943863,0.27217636,79012.0,78977.0,0.2774275]
[1769881944190,0.11966759,79011.0,78993.0,0.2901055]
[1769881944470,0.09132,79039.0,78999.0,0.2901045]
[1769881944675,0.27217636,79043.0,79005.0,0.2901045]
[1769881945076,0.27217636,79041.0,78998.0,0.012678]
[1769881945270,0.27217636,79039.0,78998.0,0.012678]
[1769881945871,0.28484736,79039.0,78994.0,0.09132]
[1769881946078,0.012673,79030.0,78982.0,0.2774275]
[1769881946277,0.012674,79024.0,78977.0,0.09132]
[1769881946482,0.09132,79023.0,78977.0,0.09132]
[1769881946772,0.012674,79021.0,78977.0,0.09132]
[1769881946971,0.33404,79022.0,78977.0,0.09132]
[1769881947173,0.33404,79022.0,78978.0,0.41669077]
[1769881947380,0.12658227,79021.0,78980.0,0.2901075]
[1769881947772,0.12658227,79021.0,78986.0,0.01268]
[1769881947975,0.33404,79022.0,78986.0,0.2774275]
[1769881948276,0.09132,79023.0,78986.0,0.2774275]
[1769881948477,0.09132,79023.0,78997.0,0.012678]
[1769881948779,0.29917583,79060.0,78999.0,0.2774275]
[1769881948971,0.27717636,79098.0,79042.0,0.2774275]
[1769881949282,0.36246983,79118.0,79047.0,0.2774275]
[1769881949283,0.27217636,79091.0,79047.0,0.2774275]
[1769881949582,0.27217636,79089.0,79048.0,0.2900975]
[1769881949878,0.33396,79088.0,79051.0,0.2900965]
[1769881950178,0.42524,79087.0,79051.0,0.2900965]
[1769881950681,0.27217636,79086.0,79052.0,0.12647261]
[1769881950874,0.27217636,79085.0,79052.0,0.12647261]
[1769881951074,0.27217636,79085.0,79050.0,0.012669]
[1769881951473,0.12647181,79084.0,79050.0,0.012669]
[1769881951775,0.12647181,79084.0,79055.0,0.012668]
[1769881952177,0.27217636,79085.0,79055.0,0.012668]
[1769881952983,0.12647101,79084.0,79060.0,0.012668]
[1769881953174,0.27217636,79096.0,79066.0,0.012667]
[1769881953374,1.06237636,79095.0,79066.0,0.012667]
[1769881953675,0.42508,79094.0,79066.0,0.012667]
[1769881953881,0.27217636,79107.0,79072.0,0.012666]
[1769881954082,0.28578255,79107.0,79053.0,0.2774275]
[1769881954379,0.27217636,79092.0,79064.0,0.012667]
[1769881954581,0.42504,79091.0,79064.0,0.012667]
[1769881954775,0.42504,79091.0,79060.0,0.001]
[1769881954776,0.27217636,79090.0,79060.0,0.001]
[1769881954980,0.27217636,79088.0,79060.0,0.001]
[1769881955182,0.36504,79089.0,79038.0,0.012671]
[1769881955183,0.27217636,79086.0,79038.0,0.012671]
[1769881955578,0.27217636,79084.0,79032.0,0.012672]
[1769881955878,0.27217636,79068.0,79018.0,0.012674]
[1769881956077,0.27217636,79066.0,79018.0,0.012674]
[1769881956384,0.27217636,79066.0,79023.0,0.012674]
[1769881956875,0.27217636,79066.0,78996.0,0.3686675]
[1769881956876,0.27217636,79064.0,79024.0,0.29502882]
[1769881957076,0.29266623,79062.0,79033.0,0.012672]
[1769881957384,0.29266623,79062.0,79025.0,0.012673]
[1769881957681,0.29266623,79060.0,79025.0,0.012673]
[1769881957981,0.425,79059.0,79034.0,0.012672]
[1769881958375,0.12651421,79059.0,79042.0,0.012671]
[1769881958578,0.425,79058.0,79042.0,0.012671]
[1769881958880,0.425,79058.0,79036.0,0.012671]
[1769881959280,0.29266623,79057.0,79029.0,0.012673]
[1769881959479,0.12650221,79057.0,79039.0,0.012671]
[1769881959672,0.12650221,79057.0,79024.0,0.29502882]
[1769881959673,0.425,79058.0,79032.0,0.012672]
[1769881959878,0.29266623,79057.0,79025.0,0.012673]
[1769881960082,0.29266623,79056.0,79025.0,0.012673]
[1769881960281,0.29266623,79056.0,79030.0,0.012672]
[1769881960685,0.425,79058.0,79036.0,0.012672]
[1769881960883,0.28974552,79057.0,79036.0,0.012672]
[1769881961084,0.33372,79056.0,79024.0,0.0001005]
[1769881961280,0.42496,79056.0,79024.0,0.0001005]
[1769881961584,0.41625253,79055.0,79027.0,0.012673]
[1769881961780,0.28974552,79054.0,79027.0,0.012673]
[1769881962874,0.09124,79056.0,79024.0,0.28258889]
[1769881963083,0.33372,79078.0,79043.0,0.28148839]
[1769881963283,0.26774552,79077.0,79054.0,0.012669]
[1769881963479,0.26774552,79077.0,79059.0,0.012668]
[1769881963981,0.26774552,79077.0,79062.0,0.012667]
[1769881964181,0.26774552,79077.0,79039.0,0.28148839]
[1769881964385,0.12647341,79076.0,79038.0,0.12647341]
[1769881964584,0.33372,79078.0,79056.0,0.012668]
[1769881964879,0.55139341,79077.0,79049.0,0.012669]
[1769881965072,0.36492,79089.0,79049.0,0.012669]
[1769881965073,0.42492,79076.0,79049.0,0.012669]
[1769881965278,0.28974552,79075.0,79049.0,0.012669]
[1769881965474,0.28974552,79075.0,79048.0,0.01267]
[1769881965883,0.12647501,79074.0,79048.0,0.01267]
[1769881966087,0.28974552,79073.0,79048.0,0.01267]
[1769881966688,0.28974552,79071.0,79048.0,0.01267]
[1769881966891,0.28974552,79071.0,79038.0,0.001]
[1769881966892,0.28974552,79071.0,79047.0,0.01267]
[1769881967094,0.28974552,79071.0,79042.0,0.012671]
[1769881967291,0.12648701,79070.0,79024.0,0.0001005]
[1769881967487,0.28974552,79069.0,79028.0,0.012673]
[1769881967688,0.28974552,79069.0,79024.0,0.0001005]
[1769881967887,0.28974552,79069.0,79025.0,0.012673]
[1769881968092,0.28974552,79067.0,79024.0,0.0001005]
[1769881968296,0.28974552,79067.0,79040.0,0.012671]
[1769881968494,0.28974552,79067.0,79046.0,0.01267]
[1769881970992,0.42492,79076.0,79025.0,0.34485639]
[1769881970993,0.28974552,79075.0,79051.0,0.012669]
[1769881971192,0.28974552,79075.0,79056.0,0.012668]
[1769881971398,0.12649181,79075.0,79061.0,0.012667]
[1769881971592,0.42492,79076.0,79061.0,0.012667]
[1769881971797,0.28974552,79086.0,79050.0,0.28148839]
[1769881972094,0.0912,79085.0,79073.0,0.012666]
[1769881972891,0.0912,79085.0,79060.0,0.28148839]
[1769881973091,0.005,79109.0,79073.0,0.28148839]
[1769881973092,0.33868,79109.0,79073.0,0.28148839]
[1769881973290,0.42488,79109.0,79091.0,0.012663]
[1769881973489,0.28974552,79107.0,79067.0,0.0912]
[1769881973694,0.28974552,79107.0,79084.0,0.012664]
[1769881973890,0.28974552,79107.0,79089.0,0.012663]
[1769881974701,0.42488,79109.0,79089.0,0.012663]
[1769881974899,0.42488,79109.0,79094.0,0.012662]
[1769881975299,0.28974552,79108.0,79088.0,0.012663]
[1769881975602,0.28974552,79108.0,79047.0,0.18549431]
[1769881975603,0.12642384,79108.0,79092.0,0.012662]
[1769881975798,0.12642384,79108.0,79086.0,0.012663]
[1769881976301,0.12642384,79108.0,79091.0,0.012663]
[1769881976495,0.42488,79109.0,79085.0,0.012664]
[1769881977497,0.28974552,79108.0,79085.0,0.012664]
[1769881977904,0.28974552,79108.0,79080.0,0.012665]
[1769881978198,0.28974552,79106.0,79080.0,0.012665]
[1769881978504,0.28974552,79106.0,79079.0,0.012665]
[1769881978802,0.12642784,79105.0,79079.0,0.012665]
[1769881979001,0.28974552,79104.0,79079.0,0.012665]
[1769881979599,0.28974552,79104.0,79065.0,0.28148839]
[1769881979600,0.28974552,79102.0,79059.0,0.012668]
[1769881979800,0.28974552,79102.0,79050.0,0.28148839]
[1769881980002,0.28974552,79102.0,79077.0,0.012665]
[1769881980202,0.28974552,79100.0,79071.0,0.012666]
[1769881980398,0.28974552,79100.0,79059.0,0.28148839]
[1769881980603,0.28974552,79100.0,79075.0,0.012665]
[1769881980807,0.12646062,79099.0,79075.0,0.012665]
[1769881981204,0.41620614,79099.0,79075.0,0.012665]
[1769881981400,0.41620614,79099.0,79055.0,0.09116]
[1769881981401,0.71462552,79109.0,79086.0,0.012664]
[1769881981807,0.71462552,79109.0,79092.0,0.012663]
[1769881982303,0.71462552,79109.0,79093.0,0.012662]
[1769881982504,0.28974552,79108.0,79082.0,0.012664]
[1769881982706,0.28974552,79107.0,79071.0,0.28148839]
[1769881982900,0.42488,79109.0,79073.0,0.28148839]
[1769881983906,0.28974552,79108.0,79089.0,0.012663]
[1769881984602,0.42488,79109.0,79068.0,0.012666]
[1769881984603,0.28974552,79106.0,79068.0,0.012666]
[1769881985198,0.28974552,79104.0,79068.0,0.012666]
[1769881985407,0.28974552,79104.0,79055.0,0.012668]
[1769881985602,0.42488,79109.0,79050.0,0.09116]
[1769881985603,0.28974552,79102.0,79060.0,0.012668]
[1769881986203,0.28974552,79102.0,79068.0,0.012666]
[1769881986410,0.28974552,79100.0,79073.0,0.012666]
[1769881986607,0.42468,79099.0,79083.0,0.012664]
[1769881986801,0.42468,79099.0,79089.0,0.012663]
[1769881987008,0.42468,79099.0,79087.0,0.012663]
[1769881987204,0.33352,79099.0,79084.0,0.012664]
[1769881987408,0.6216034,79099.0,79078.0,0.012665]
[1769881987609,0.2880834,79098.0,79078.0,0.012665]
[1769881987807,0.2660834,79098.0,79078.0,0.012665]
[1769881988007,0.2660834,79098.0,79082.0,0.012664]
[1769881988607,0.33352,79099.0,79087.0,0.012663]
[1769881988814,0.33352,79099.0,79074.0,0.27257967]
[1769881989014,0.33352,79099.0,79066.0,0.063335]
[1769881989311,0.33352,79099.0,79086.0,0.012663]
[1769881989511,0.33352,79098.0,79069.0,0.063333]
[1769881989711,0.33352,79098.0,79070.0,0.27257967]
[1769881989905,1.8e-07,79101.0,79095.0,0.012662]
[1769881990309,1.8e-07,79101.0,79082.0,0.012664]
[1769881990310,0.28808358,79101.0,79082.0,0.012664]
[1769881990714,0.12644782,79100.0,79082.0,0.012664]
[1769881990916,0.2880834,79099.0,79082.0,0.012664]
[1769881991120,0.2880834,79099.0,79067.0,0.063335]
[1769881991418,1.8e-07,79101.0,79086.0,0.012663]
[1769881991808,1.8e-07,79101.0,79091.0,0.012663]
[1769881992212,1.8e-07,79101.0,79067.0,0.27257967]
[1769881992516,1.8e-07,79101.0,79064.0,0.09116]
[1769881992924,1.8e-07,79101.0,79065.0,0.27257967]
[1769881993225,1.8e-07,79101.0,79087.0,0.012663]
[1769881993423,1.8e-07,79101.0,79091.0,0.012663]
[1769881993918,1.8e-07,79101.0,79086.0,0.012664]
[1769881994120,1.8e-07,79101.0,79064.0,0.09116]
[1769881994822,0.09116,79100.0,79083.0,0.012664]
[1769881995227,0.09116,79100.0,79070.0,0.012666]
[1769881995524,0.09116,79100.0,79064.0,0.09116]
[1769881995724,0.12643583,79099.0,79054.0,0.012669]
[1769881996124,0.12643583,79099.0,79041.0,0.33593567]
[1769881996318,0.12643583,79099.0,79071.0,0.012666]
[1769881996825,0.2880834,79098.0,79071.0,0.012666]
[1769881997022,0.2880834,79098.0,79076.0,0.012665]
[1769881997324,0.2880834,79098.0,79081.0,0.012664]
[1769881997527,0.12644702,79097.0,79085.0,0.012664]
[1769881997727,0.09116,79100.0,79085.0,0.012664]
[1769881997921,0.09116,79100.0,79066.0,0.09116]
[1769881997922,0.2880834,79099.0,79066.0,0.09116]
[1769881998219,0.2880834,79098.0,79066.0,0.09116]
[1769881998922,0.2880834,79096.0,79073.0,0.012666]
[1769881999122,0.2880834,79096.0,79066.0,0.09116]
[1769881999123,0.2880834,79096.0,79068.0,0.012666]
[1769881999426,0.2880834,79096.0,79066.0,0.001]
[1769881999630,0.2880834,79094.0,79066.0,0.001]
[1769881999926,0.2880834,79094.0,79052.0,0.09116]
[1769882000123,0.2880834,79094.0,79062.0,0.012667]
[1769882000327,0.2880834,79092.0,79052.0,0.09116]
[1769882000545,0.2880834,79092.0,79061.0,0.012667]
[1769882000937,0.2880834,79090.0,79061.0,0.012667]
[1769882001134,0.2880834,79090.0,79052.0,0.09116]
[1769882001539,0.2880834,79088.0,79052.0,0.09116]
[1769882001742,0.2880834,79088.0,79053.0,0.27257967]
[1769882001933,0.33348,79089.0,79057.0,0.27257967]
[1769882002133,0.31148,79089.0,79057.0,0.27257967]
[1769882002445,0.31148,79089.0,79075.0,0.012665]
[1769882002636,0.31148,79089.0,79081.0,0.012664]
[1769882003038,0.31148,79089.0,79071.0,0.012666]
[1769882003944,0.2880834,79087.0,79066.0,0.012667]
[1769882004141,0.2880834,79085.0,79066.0,0.012667]
[1769882004644,0.12645422,79084.0,79066.0,0.012667]
[1769882004833,0.2880834,79083.0,79052.0,0.09116]
[1769882005039,0.2880834,79083.0,79061.0,0.012668]
[1769882005339,0.2880834,79083.0,79052.0,0.09116]
[1769882005535,0.2880834,79081.0,79044.0,0.01267]
[1769882005733,0.2880834,79081.0,79048.0,0.01267]
[1769882005942,0.2880834,79081.0,79052.0,0.012669]
[1769882006244,0.2880834,79079.0,79057.0,0.012668]
[1769882006840,0.12647581,79078.0,79057.0,0.012668]
[1769882007238,0.41455921,79078.0,79057.0,0.012668]
[1769882007543,0.2880834,79077.0,79051.0,0.012669]
[1769882007844,0.41455761,79077.0,79051.0,0.012669]
[1769882008048,0.2880834,79076.0,79051.0,0.012669]
[1769882008339,0.33352,79075.0,79060.0,0.012668]
[1769882008533,0.33352,79085.0,79068.0,0.012666]
[1769882008735,0.45999981,79085.0,79068.0,0.012666]
[1769882008939,0.09116,79086.0,79068.0,0.012666]
[1769882009342,0.06916,79086.0,79068.0,0.012666]
[1769882010642,0.06916,79086.0,79068.0,0.013666]
[1769882010839,0.06916,79086.0,79068.0,0.001]
[1769882011046,0.2880834,79084.0,79056.0,0.012668]
[1769882011446,0.2880834,79084.0,79061.0,0.012668]
[1769882011746,0.2880834,79082.0,79056.0,0.012668]
[1769882012448,0.2880834,79080.0,79056.0,0.012668]
[1769882012750,0.2880834,79078.0,79056.0,0.012668]
[1769882013646,0.12647501,79077.0,79056.0,0.012668]
[1769882014443,0.33352,79079.0,79051.0,0.09116]
[1769882014745,0.33352,79079.0,79058.0,0.012668]
[1769882017143,0.29226034,79085.0,79058.0,0.012668]
[1769882017555,0.41873295,79085.0,79058.0,0.012668]
[1769882017743,0.41873295,79085.0,79062.0,0.012667]
[1769882018045,0.06916,79086.0,79052.0,0.2707399]
[1769882018248,0.06916,79086.0,79069.0,0.012666]
[1769882018946,0.005,79111.0,79060.0,0.2707399]
[1769882018947,0.29226034,79104.0,79066.0,0.2707399]
[1769882019145,0.62582034,79102.0,79066.0,0.2707399]
[1769882019452,0.29226034,79101.0,79054.0,0.15083865]
[1769882019655,0.29226034,79101.0,79059.0,0.012668]
[1769882019953,0.29226034,79099.0,79069.0,0.012666]
[1769882020346,0.29226034,79099.0,79055.0,0.2707399]
[1769882020647,0.29226034,79097.0,79065.0,0.012667]
[1769882021048,0.33352,79096.0,79065.0,0.012667]
[1769882021343,0.29226034,79095.0,79065.0,0.012667]
[1769882021951,0.12645262,79094.0,79065.0,0.012667]
[1769882022151,0.27687273,79093.0,79065.0,0.012667]
[1769882022749,0.12645502,79092.0,79065.0,0.012667]
[1769882023053,0.27687273,79091.0,79065.0,0.012667]
[1769882023651,0.12645662,79090.0,79065.0,0.012667]
[1769882024450,0.27687273,79091.0,79069.0,0.012666]
[1769882025350,0.33352,79096.0,79074.0,0.012665]
[1769882025855,0.12645422,79095.0,79074.0,0.012665]
[1769882026453,0.27687273,79094.0,79074.0,0.012665]
[1769882026650,0.27687273,79094.0,79068.0,0.09116]
[1769882027148,0.27687273,79094.0,79068.0,0.103826]
[1769882027349,0.27687273,79092.0,79051.0,0.15083865]
[1769882027644,0.27687273,79092.0,79061.0,0.012667]
[1769882028049,0.27687273,79092.0,79064.0,0.012667]
[1769882031153,0.27687273,79092.0,79062.0,0.09116]
[1769882031346,0.27687273,79090.0,79062.0,0.09116]
[1769882032061,0.09116,79091.0,79062.0,0.09116]
[1769882032062,0.27687273,79088.0,79062.0,0.09116]
[1769882032356,0.09116,79091.0,79062.0,0.09116]
[1769882032357,0.11269269,79087.0,79063.0,0.29283455]
[1769882032658,0.11269269,79086.0,79068.0,0.012666]
[1769882032859,0.11269269,79085.0,79068.0,0.012666]
[1769882033053,0.09116,79091.0,79068.0,0.012666]
[1769882033253,0.11286856,79090.0,79068.0,0.012666]
[1769882033554,0.09086856,79089.0,79068.0,0.012666]